[Event "*** Titled Tuesday Blitz"]
[Site "Chess.com"]
[Date "2020.04.21"]
[Round "3"]
[White "Alexander_Moskalenko"]
[Black "HaryKane"]
[Result "1/2-1/2"]
[WhiteElo "2899"]
[BlackElo "2668"]
[TimeControl "180+1"]
[EndTime "10:30:04 PDT"]
[Termination "Game drawn by repetition"]

1. e4 {[%clk 0:03:00.9]} 1... e6 {[%clk 0:03:00.9]} 2. d4 {[%clk 0:03:00.9]}
2... d5 {[%clk 0:03:01.6]} 3. Nd2 {[%clk 0:03:01.7]} 3... g6 {[%clk 0:03:01.1]}
4. Ngf3 {[%clk 0:03:00.7]} 4... Bg7 {[%clk 0:03:01.4]} 5. Bd3 {[%clk 0:02:59.4]}
5... Ne7 {[%clk 0:03:01.4]} 6. O-O {[%clk 0:02:55.3]} 6... O-O {[%clk
0:03:00.5]} 7. c4 {[%clk 0:02:55.8]} 7... dxc4 {[%clk 0:02:51]} 8. Bxc4 {[%clk
0:02:52.1]} 8... b6 {[%clk 0:02:45.4]} 9. e5 {[%clk 0:02:45.2]} 9... Bb7 {[%clk
0:02:42]} 10. Nb3 {[%clk 0:02:44.1]} 10... Nd7 {[%clk 0:02:40.2]} 11. Bd2 {[%clk
0:02:38.3]} 11... c5 {[%clk 0:02:38.6]} 12. dxc5 {[%clk 0:02:37.7]} 12... Nxe5
{[%clk 0:02:36.9]} 13. Nxe5 {[%clk 0:02:32.4]} 13... Bxe5 {[%clk 0:02:37.8]} 14.
Bh6 {[%clk 0:02:32.7]} 14... Qxd1 {[%clk 0:02:37.8]} 15. Raxd1 {[%clk
0:02:32.5]} 15... Rfd8 {[%clk 0:02:38]} 16. Bg5 {[%clk 0:02:30.4]} 16... Rxd1
{[%clk 0:02:34.3]} 17. Rxd1 {[%clk 0:02:29.6]} 17... Nd5 {[%clk 0:02:32.7]} 18.
Bb5 {[%clk 0:02:15.1]} 18... Rc8 {[%clk 0:02:19.2]} 19. cxb6 {[%clk 0:01:42.7]}
19... axb6 {[%clk 0:02:18.3]} 20. Bc1 {[%clk 0:01:40.8]} 20... Bc6 {[%clk
0:02:07.1]} 21. Bd3 {[%clk 0:01:28]} 21... Nb4 {[%clk 0:02:01.6]} 22. Bb1 {[%clk
0:01:28.2]} 22... Bd5 {[%clk 0:01:57.6]} 23. g3 {[%clk 0:01:20.2]} 23... Ra8
{[%clk 0:01:53.4]} 24. Nd4 {[%clk 0:00:55.6]} 24... Nxa2 {[%clk 0:01:47.1]} 25.
Be3 {[%clk 0:00:55.7]} 25... Nb4 {[%clk 0:01:38.5]} 26. Nb5 {[%clk 0:00:47.1]}
26... Bb3 {[%clk 0:01:19.2]} 27. Re1 {[%clk 0:00:42.9]} 27... Ra1 {[%clk
0:01:16.7]} 28. Bd2 {[%clk 0:00:37.4]} 28... Bc2 {[%clk 0:01:05.7]} 29. Bxb4
{[%clk 0:00:22.6]} 29... Rxb1 {[%clk 0:01:04.8]} 30. Rxb1 {[%clk 0:00:19.5]}
30... Bxb1 {[%clk 0:01:05.7]} 31. Bc3 {[%clk 0:00:20.4]} 31... Bd3 {[%clk
0:00:51.6]} 32. Bxe5 {[%clk 0:00:19.6]} 32... Bxb5 {[%clk 0:00:51.5]} 33. Bc7
{[%clk 0:00:20]} 33... f5 {[%clk 0:00:47.6]} 34. Bxb6 {[%clk 0:00:20.9]} 34...
e5 {[%clk 0:00:47.9]} 35. Kg2 {[%clk 0:00:19.7]} 35... Kf7 {[%clk 0:00:46.9]}
36. Kf3 {[%clk 0:00:19.9]} 36... Ke6 {[%clk 0:00:46.1]} 37. Ke3 {[%clk
0:00:20.4]} 37... Kd5 {[%clk 0:00:46.1]} 38. h4 {[%clk 0:00:20.7]} 38... h5
{[%clk 0:00:44.5]} 39. Bc7 {[%clk 0:00:20.8]} 39... e4 {[%clk 0:00:42.4]} 40.
Kf4 {[%clk 0:00:20.5]} 40... Kc4 {[%clk 0:00:39.1]} 41. Kg5 {[%clk 0:00:19.5]}
41... Be8 {[%clk 0:00:38.9]} 42. Kf6 {[%clk 0:00:17.7]} 42... Kb3 {[%clk
0:00:38.7]} 43. Be5 {[%clk 0:00:17.5]} 43... Kc4 {[%clk 0:00:36.5]} 44. Ke7
{[%clk 0:00:17.6]} 44... Ba4 {[%clk 0:00:35.7]} 45. Kf7 {[%clk 0:00:18]} 45...
Bd1 {[%clk 0:00:33.8]} 46. Kxg6 {[%clk 0:00:17.1]} 46... Bg4 {[%clk 0:00:34.2]}
47. Kf6 {[%clk 0:00:16.5]} 47... Kb3 {[%clk 0:00:33.6]} 48. Bc3 {[%clk 0:00:16]}
48... Kc4 {[%clk 0:00:32.9]} 49. Ke5 {[%clk 0:00:16.9]} 49... Kb3 {[%clk
0:00:32.9]} 50. Kd4 {[%clk 0:00:17.2]} 50... Bf3 {[%clk 0:00:30.5]} 51. Ke3
{[%clk 0:00:15.7]} 51... Bg4 {[%clk 0:00:29.1]} 52. Kf4 {[%clk 0:00:14.7]} 52...
Kc4 {[%clk 0:00:28.7]} 53. b4 {[%clk 0:00:08.2]} 53... Kb5 {[%clk 0:00:21.5]}
54. Be1 {[%clk 0:00:06.8]} 54... Kc4 {[%clk 0:00:21.4]} 55. Ke5 {[%clk
0:00:06.7]} 55... Kb5 {[%clk 0:00:21.5]} 56. Bd2 {[%clk 0:00:07.2]} 56... Kc4
{[%clk 0:00:20.9]} 57. Kd6 {[%clk 0:00:07.6]} 57... Kb5 {[%clk 0:00:21.1]} 58.
Kd5 {[%clk 0:00:07.2]} 58... Bh3 {[%clk 0:00:20.9]} 59. Be3 {[%clk 0:00:06.7]}
59... Bg4 {[%clk 0:00:20.9]} 60. Bc5 {[%clk 0:00:06.1]} 60... Bh3 {[%clk
0:00:21.3]} 61. Ke5 {[%clk 0:00:06.4]} 61... Bg4 {[%clk 0:00:21.5]} 62. Kf4
{[%clk 0:00:06.9]} 62... Kc4 {[%clk 0:00:20.5]} 63. Bf8 {[%clk 0:00:05.6]} 63...
Kb5 {[%clk 0:00:20.8]} 64. Kg5 {[%clk 0:00:06.2]} 64... Kc4 {[%clk 0:00:21.2]}
65. Bc5 {[%clk 0:00:06.2]} 65... Kb5 {[%clk 0:00:21.4]} 66. Be7 {[%clk
0:00:06.5]} 66... Kc4 {[%clk 0:00:21.7]} 67. Kf4 {[%clk 0:00:06]} 67... Kb5
{[%clk 0:00:22.1]} 68. Ke3 {[%clk 0:00:06.9]} 68... Kc4 {[%clk 0:00:22.1]} 69.
Bf8 {[%clk 0:00:07.6]} 69... Kb5 {[%clk 0:00:22.4]} 70. Kd4 {[%clk 0:00:08]}
70... Bh3 {[%clk 0:00:22.3]} 71. f3 {[%clk 0:00:07.6]} 71... exf3 {[%clk
0:00:21.4]} 72. Ke3 {[%clk 0:00:08.3]} 72... Bg4 {[%clk 0:00:20.4]} 73. Kf2
{[%clk 0:00:09.2]} 73... Kc4 {[%clk 0:00:20.5]} 74. Be7 {[%clk 0:00:10.1]} 74...
Kb5 {[%clk 0:00:20.8]} 75. Bf8 {[%clk 0:00:11]} 75... Kc4 {[%clk 0:00:21.2]} 76.
Be7 {[%clk 0:00:11.9]} 76... Kb5 {[%clk 0:00:21.7]} 77. Bf8 {[%clk 0:00:12.8]}
1/2-1/2

[Event "*** Titled Tuesday Blitz"]
[Site "Chess.com"]
[Date "2020.04.21"]
[Round "3"]
[White "losersgame"]
[Black "MarcoCorvi"]
[Result "1/2-1/2"]
[WhiteElo "2354"]
[BlackElo "2154"]
[TimeControl "180+1"]
[EndTime "10:30:04 PDT"]
[Termination "Game drawn by repetition"]

1. d4 {[%clk 0:03:00.9]} 1... f5 {[%clk 0:02:57.7]} 2. Nc3 {[%clk 0:02:58.4]}
2... Nf6 {[%clk 0:02:57.7]} 3. Bg5 {[%clk 0:02:55.4]} 3... e6 {[%clk 0:02:57.5]}
4. e4 {[%clk 0:02:54.2]} 4... fxe4 {[%clk 0:02:58.2]} 5. Nxe4 {[%clk 0:02:53.9]}
5... Be7 {[%clk 0:02:57.8]} 6. Ng3 {[%clk 0:02:46.3]} 6... O-O {[%clk 0:02:48]}
7. Nf3 {[%clk 0:02:46.3]} 7... c5 {[%clk 0:02:45.2]} 8. Be2 {[%clk 0:02:43.2]}
8... cxd4 {[%clk 0:02:38.9]} 9. O-O {[%clk 0:02:41.9]} 9... Nc6 {[%clk
0:02:38.5]} 10. Nxd4 {[%clk 0:02:41.7]} 10... Nxd4 {[%clk 0:02:35.8]} 11. Qxd4
{[%clk 0:02:41.3]} 11... Qb6 {[%clk 0:02:21.2]} 12. Qxb6 {[%clk 0:02:35.4]}
12... axb6 {[%clk 0:02:05.5]} 13. a4 {[%clk 0:02:30.3]} 13... d5 {[%clk
0:01:55.4]} 14. Bb5 {[%clk 0:02:26]} 14... e5 {[%clk 0:01:51.1]} 15. Rfe1 {[%clk
0:02:15.8]} 15... h6 {[%clk 0:01:50.1]} 16. Rxe5 {[%clk 0:01:54.6]} 16... Bd6
{[%clk 0:01:38.7]} 17. Bxf6 {[%clk 0:01:54]} 17... Rxf6 {[%clk 0:01:33.4]} 18.
Rxd5 {[%clk 0:01:14.8]} 18... Bg4 {[%clk 0:01:22.8]} 19. Ne4 {[%clk 0:01:11.8]}
19... Rd8 {[%clk 0:01:11.2]} 20. Nxf6+ {[%clk 0:01:08.6]} 20... gxf6 {[%clk
0:01:12.1]} 21. h3 {[%clk 0:00:35.8]} 21... Be6 {[%clk 0:01:09.6]} 22. Rd3
{[%clk 0:00:34.5]} 22... Bf5 {[%clk 0:01:06.1]} 23. Rd5 {[%clk 0:00:33.2]} 23...
Be6 {[%clk 0:01:04]} 24. Rd4 {[%clk 0:00:32.6]} 24... Bh2+ {[%clk 0:01:00.8]}
25. Kxh2 {[%clk 0:00:32.2]} 25... Rxd4 {[%clk 0:01:01.2]} 26. Re1 {[%clk
0:00:31.1]} 26... Kf7 {[%clk 0:01:00.9]} 27. c3 {[%clk 0:00:29.2]} 27... Rd2
{[%clk 0:00:59.8]} 28. Re2 {[%clk 0:00:29.4]} 28... Rd1 {[%clk 0:00:59]} 29. f3
{[%clk 0:00:26.5]} 29... Bd5 {[%clk 0:00:57.6]} 30. Be8+ {[%clk 0:00:24.4]}
30... Kf8 {[%clk 0:00:54.9]} 31. Bb5 {[%clk 0:00:23.3]} 31... Kf7 {[%clk
0:00:52.4]} 32. Kg3 {[%clk 0:00:23.7]} 32... Be6 {[%clk 0:00:50.9]} 33. Kf4
{[%clk 0:00:22.7]} 33... Rd6 {[%clk 0:00:50.9]} 34. g4 {[%clk 0:00:22]} 34...
Rd1 {[%clk 0:00:49.7]} 35. h4 {[%clk 0:00:21.6]} 35... Rd8 {[%clk 0:00:48.5]}
36. h5 {[%clk 0:00:21.4]} 36... Rd6 {[%clk 0:00:47]} 37. Ke3 {[%clk 0:00:20.2]}
37... Rd1 {[%clk 0:00:46]} 38. Rd2 {[%clk 0:00:20]} 38... Re1+ {[%clk
0:00:45.3]} 39. Kf2 {[%clk 0:00:20.2]} 39... Rb1 {[%clk 0:00:44.6]} 40. Kg3
{[%clk 0:00:19.8]} 40... Ke7 {[%clk 0:00:43.1]} 41. Kf4 {[%clk 0:00:18.7]} 41...
Re1 {[%clk 0:00:41.3]} 42. Re2 {[%clk 0:00:18.2]} 42... Rxe2 {[%clk 0:00:36.5]}
43. Bxe2 {[%clk 0:00:17.9]} 43... Kd6 {[%clk 0:00:37.4]} 44. Bb5 {[%clk
0:00:16.6]} 44... Kc5 {[%clk 0:00:36.4]} 45. Ke4 {[%clk 0:00:15.8]} 45... Bc8
{[%clk 0:00:33.6]} 46. b4+ {[%clk 0:00:13.3]} 46... Kd6 {[%clk 0:00:31.9]} 47.
Be2 {[%clk 0:00:13.3]} 47... Bd7 {[%clk 0:00:30.2]} 48. a5 {[%clk 0:00:10.3]}
48... Bc6+ {[%clk 0:00:28.3]} 49. Kd4 {[%clk 0:00:09.7]} 49... bxa5 {[%clk
0:00:28.8]} 50. bxa5 {[%clk 0:00:09.7]} 50... Ke6 {[%clk 0:00:27.3]} 51. f4
{[%clk 0:00:09.5]} 51... Kd6 {[%clk 0:00:27.1]} 52. a6 {[%clk 0:00:07.3]} 52...
bxa6 {[%clk 0:00:25.5]} 53. Bxa6 {[%clk 0:00:07.7]} 53... Bd7 {[%clk 0:00:26.4]}
54. Be2 {[%clk 0:00:07.5]} 54... Be6 {[%clk 0:00:23.6]} 55. Bf3 {[%clk
0:00:07.2]} 55... Bd7 {[%clk 0:00:23.6]} 56. c4 {[%clk 0:00:07.5]} 56... Bc8
{[%clk 0:00:20.7]} 57. c5+ {[%clk 0:00:07.7]} 57... Kc7 {[%clk 0:00:19.7]} 58.
c6 {[%clk 0:00:06.4]} 58... Be6 {[%clk 0:00:18.9]} 59. f5 {[%clk 0:00:06.2]}
59... Bc8 {[%clk 0:00:17.6]} 60. Bd5 {[%clk 0:00:06.2]} 60... Kd6 {[%clk
0:00:16.8]} 61. Be4 {[%clk 0:00:06.4]} 61... Ba6 {[%clk 0:00:16.5]} 62. Bf3
{[%clk 0:00:06]} 62... Bc8 {[%clk 0:00:16.4]} 63. Kc3 {[%clk 0:00:06.3]} 63...
Ba6 {[%clk 0:00:16.2]} 64. Kb4 {[%clk 0:00:06.6]} 64... Bd3 {[%clk 0:00:15.3]}
65. Ka5 {[%clk 0:00:06.6]} 65... Kc7 {[%clk 0:00:15.1]} 66. Kb4 {[%clk
0:00:06.3]} 66... Kd6 {[%clk 0:00:14.4]} 67. Kc3 {[%clk 0:00:06.8]} 67... Bb5
{[%clk 0:00:12.7]} 68. Kd4 {[%clk 0:00:07.2]} 68... Ba6 {[%clk 0:00:10.6]} 69.
Kc3 {[%clk 0:00:05.8]} 69... Bf1 {[%clk 0:00:08.9]} 70. Kb4 {[%clk 0:00:06.2]}
70... Bd3 {[%clk 0:00:06.4]} 1/2-1/2

[Event "*** Titled Tuesday Blitz"]
[Site "Chess.com"]
[Date "2020.04.21"]
[Round "3"]
[White "Gentlejimmy7"]
[Black "Caterpiller35"]
[Result "1-0"]
[WhiteElo "2615"]
[BlackElo "2394"]
[TimeControl "180+1"]
[EndTime "10:30:06 PDT"]
[Termination "Gentlejimmy7 won by resignation"]

1. d4 {[%clk 0:03:00.9]} 1... Nf6 {[%clk 0:02:59]} 2. g3 {[%clk 0:03:01.4]} 2...
e6 {[%clk 0:02:59]} 3. Bg2 {[%clk 0:03:01.6]} 3... d5 {[%clk 0:02:59.3]} 4. Nf3
{[%clk 0:03:01.8]} 4... Be7 {[%clk 0:02:59.8]} 5. O-O {[%clk 0:03:02]} 5... O-O
{[%clk 0:02:59.2]} 6. c4 {[%clk 0:03:02.2]} 6... dxc4 {[%clk 0:02:59.5]} 7. Qc2
{[%clk 0:03:01]} 7... b6 {[%clk 0:02:59.1]} 8. Nbd2 {[%clk 0:02:56.2]} 8... Bb7
{[%clk 0:02:58.5]} 9. Nxc4 {[%clk 0:02:55.2]} 9... Nbd7 {[%clk 0:02:58.6]} 10.
b3 {[%clk 0:02:55.2]} 10... c5 {[%clk 0:02:58.6]} 11. Bb2 {[%clk 0:02:55.3]}
11... Rc8 {[%clk 0:02:57]} 12. Rfd1 {[%clk 0:02:51.1]} 12... Qc7 {[%clk
0:02:56.7]} 13. Rac1 {[%clk 0:02:50.3]} 13... cxd4 {[%clk 0:02:43.1]} 14. Qd2
{[%clk 0:02:47.4]} 14... Bxf3 {[%clk 0:02:29.9]} 15. Bxf3 {[%clk 0:02:45.5]}
15... e5 {[%clk 0:02:29.8]} 16. e3 {[%clk 0:02:19.3]} 16... dxe3 {[%clk
0:02:25.3]} 17. Nxe3 {[%clk 0:02:15.9]} 17... Qb8 {[%clk 0:01:59.4]} 18. Nd5
{[%clk 0:02:07.1]} 18... Nxd5 {[%clk 0:01:53.3]} 19. Qxd5 {[%clk 0:02:08]} 19...
Rxc1 {[%clk 0:01:40.1]} 20. Rxc1 {[%clk 0:02:08]} 20... Nf6 {[%clk 0:01:35.4]}
21. Qxe5 {[%clk 0:02:06.9]} 21... Qxe5 {[%clk 0:01:30.3]} 22. Bxe5 {[%clk
0:02:07.8]} 22... Bc5 {[%clk 0:01:27.8]} 23. Rd1 {[%clk 0:01:53.4]} 23... Re8
{[%clk 0:01:22.8]} 24. Bxf6 {[%clk 0:01:52.9]} 24... gxf6 {[%clk 0:01:22.3]} 25.
Rd7 {[%clk 0:01:53.1]} 25... Re7 {[%clk 0:01:20.7]} 26. Rd8+ {[%clk 0:01:53.3]}
26... Kg7 {[%clk 0:01:20.9]} 27. Kf1 {[%clk 0:01:52.6]} 27... a5 {[%clk
0:01:20.8]} 28. Bd5 {[%clk 0:01:51.6]} 28... f5 {[%clk 0:01:09]} 29. f4 {[%clk
0:01:47.2]} 29... Kf6 {[%clk 0:01:03.7]} 30. Bc4 {[%clk 0:01:46.9]} 30... Re3
{[%clk 0:00:43.3]} 31. Be2 {[%clk 0:01:40.5]} 31... Rc3 {[%clk 0:00:40.1]} 32.
Bd3 {[%clk 0:01:40.6]} 32... Rc1+ {[%clk 0:00:35.4]} 33. Kg2 {[%clk 0:01:39]}
33... Ra1 {[%clk 0:00:34.1]} 34. a4 {[%clk 0:01:37]} 34... Ra2+ {[%clk
0:00:33.5]} 35. Kf1 {[%clk 0:01:32.7]} 35... Rf2+ {[%clk 0:00:29]} 36. Ke1
{[%clk 0:01:32.4]} 36... Rxh2 {[%clk 0:00:28.9]} 37. Rd5 {[%clk 0:01:32.9]}
37... Bf2+ {[%clk 0:00:27.3]} 38. Ke2 {[%clk 0:01:28.3]} 38... Bxg3+ {[%clk
0:00:27]} 39. Kf3 {[%clk 0:01:28.9]} 39... Bf2 {[%clk 0:00:23.1]} 40. Rxf5+
{[%clk 0:01:29]} 40... Ke7 {[%clk 0:00:22.8]} 41. Re5+ {[%clk 0:01:27.9]} 41...
Kd6 {[%clk 0:00:15.9]} 42. Bc4 {[%clk 0:01:28]} 42... f6 {[%clk 0:00:04.3]} 43.
Rd5+ {[%clk 0:01:26.9]} 43... Kc6 {[%clk 0:00:04.2]} 44. Rd2 {[%clk 0:01:23]}
44... Bg1 {[%clk 0:00:03]} 45. Rd1 {[%clk 0:01:23.2]} 45... Bc5 {[%clk
0:00:02.7]} 46. Rd8 {[%clk 0:01:21.7]} 46... Kc7 {[%clk 0:00:02.7]} 47. Rh8
{[%clk 0:01:20.4]} 47... Rh4 {[%clk 0:00:02.6]} 48. f5 {[%clk 0:01:19.4]} 48...
Bd6 {[%clk 0:00:03]} 49. Be6 {[%clk 0:01:19.6]} 49... Rf4+ {[%clk 0:00:03]} 50.
Ke3 {[%clk 0:01:19.8]} 50... Rh4 {[%clk 0:00:03.4]} 51. Rg8 {[%clk 0:01:19.6]}
51... Be5 {[%clk 0:00:03.5]} 52. Kd3 {[%clk 0:01:14.6]} 52... Kd6 {[%clk
0:00:03.4]} 53. Rd8+ {[%clk 0:01:14.4]} 53... Kc5 {[%clk 0:00:03.5]} 54. Rd5+
{[%clk 0:01:13.3]} 54... Kb4 {[%clk 0:00:03.8]} 55. Rb5+ {[%clk 0:01:13.3]}
55... Ka3 {[%clk 0:00:03.5]} 56. Rxb6 {[%clk 0:01:13.8]} 56... Rd4+ {[%clk
0:00:03.6]} 57. Ke3 {[%clk 0:01:13.4]} 57... h5 {[%clk 0:00:04.3]} 58. Rb7
{[%clk 0:01:13]} 58... h4 {[%clk 0:00:04.3]} 59. Rh7 {[%clk 0:01:12.9]} 59...
Rb4 {[%clk 0:00:04.5]} 60. Kf3 {[%clk 0:01:11.9]} 60... Rf4+ {[%clk 0:00:03.9]}
61. Ke3 {[%clk 0:01:12.2]} 61... Rb4 {[%clk 0:00:04.8]} 62. Bc4 {[%clk
0:01:11.6]} 62... Kb2 {[%clk 0:00:03.7]} 63. Rxh4 {[%clk 0:01:10.6]} 63... Kc3
{[%clk 0:00:03.6]} 64. Ke4 {[%clk 0:01:08]} 64... Rxc4+ {[%clk 0:00:03.2]} 65.
bxc4 {[%clk 0:01:07.2]} 65... Kxc4 {[%clk 0:00:04.1]} 66. Ke3+ {[%clk
0:01:06.9]} 66... Kb3 {[%clk 0:00:05]} 67. Kd3 {[%clk 0:01:06.6]} 67... Bc3
{[%clk 0:00:04.7]} 68. Rh3 {[%clk 0:01:04.9]} 68... Be5 {[%clk 0:00:03.6]} 69.
Rh4 {[%clk 0:01:03.4]} 69... Bc3 {[%clk 0:00:03.5]} 70. Rc4 {[%clk 0:01:03.8]}
70... Bb4 {[%clk 0:00:03.3]} 71. Rc6 {[%clk 0:01:04.4]} 71... Kxa4 {[%clk
0:00:03]} 72. Rxf6 {[%clk 0:01:04.4]} 72... Kb3 {[%clk 0:00:03.5]} 73. Rb6
{[%clk 0:01:04]} 73... a4 {[%clk 0:00:03.8]} 74. f6 {[%clk 0:01:04.5]} 74... a3
{[%clk 0:00:04.2]} 75. f7 {[%clk 0:01:04.8]} 75... a2 {[%clk 0:00:04.7]} 76.
Rxb4+ {[%clk 0:01:04.7]} 76... Kxb4 {[%clk 0:00:04.5]} 77. f8=Q+ {[%clk
0:01:04.5]} 77... Kb3 {[%clk 0:00:05.4]} 78. Qf6 {[%clk 0:01:03.2]} 78... Ka3
{[%clk 0:00:04.9]} 79. Qa1 {[%clk 0:01:02.3]} 79... Kb3 {[%clk 0:00:05.1]} 1-0

[Event "*** Titled Tuesday Blitz"]
[Site "Chess.com"]
[Date "2020.04.21"]
[Round "3"]
[White "semchik73"]
[Black "Kildepiotr"]
[Result "1/2-1/2"]
[WhiteElo "2281"]
[BlackElo "2532"]
[TimeControl "180+1"]
[EndTime "10:30:09 PDT"]
[Termination "Game drawn - insufficient material"]

1. Nf3 {[%clk 0:02:59.9]} 1... g6 {[%clk 0:02:59.5]} 2. c4 {[%clk 0:02:59.6]}
2... Bg7 {[%clk 0:02:59.6]} 3. d4 {[%clk 0:03:00.1]} 3... d6 {[%clk 0:02:59.4]}
4. Nc3 {[%clk 0:03:00.4]} 4... Nd7 {[%clk 0:02:59.9]} 5. e4 {[%clk 0:03:00.4]}
5... e5 {[%clk 0:03:00.2]} 6. Be2 {[%clk 0:02:58.8]} 6... Ngf6 {[%clk
0:02:59.8]} 7. O-O {[%clk 0:02:56.1]} 7... O-O {[%clk 0:02:59.8]} 8. h3 {[%clk
0:02:53.7]} 8... c6 {[%clk 0:02:57.5]} 9. Be3 {[%clk 0:02:50.1]} 9... exd4
{[%clk 0:02:56.5]} 10. Nxd4 {[%clk 0:02:46.3]} 10... Nc5 {[%clk 0:02:56.5]} 11.
Bf3 {[%clk 0:02:41.6]} 11... Re8 {[%clk 0:02:55.6]} 12. Qc2 {[%clk 0:02:33.2]}
12... a5 {[%clk 0:02:50.9]} 13. Rfe1 {[%clk 0:02:27.6]} 13... Qc7 {[%clk
0:02:46.8]} 14. Rad1 {[%clk 0:02:24.8]} 14... a4 {[%clk 0:02:45.4]} 15. Bf4
{[%clk 0:02:15.9]} 15... Bf8 {[%clk 0:02:37.5]} 16. b4 {[%clk 0:01:49.9]} 16...
axb3 {[%clk 0:02:36.6]} 17. axb3 {[%clk 0:01:50.3]} 17... Ncd7 {[%clk
0:02:27.6]} 18. b4 {[%clk 0:01:36.4]} 18... Ne5 {[%clk 0:02:26.8]} 19. Be2
{[%clk 0:01:36.4]} 19... Qb6 {[%clk 0:02:19.4]} 20. b5 {[%clk 0:00:58.8]} 20...
Bg7 {[%clk 0:01:59.5]} 21. Nf3 {[%clk 0:00:53.4]} 21... Qc7 {[%clk 0:01:44.4]}
22. c5 {[%clk 0:00:47.8]} 22... Nfd7 {[%clk 0:01:27.5]} 23. cxd6 {[%clk
0:00:46.6]} 23... Qb6 {[%clk 0:01:25.7]} 24. bxc6 {[%clk 0:00:43.7]} 24... bxc6
{[%clk 0:01:25.6]} 25. Nxe5 {[%clk 0:00:41]} 25... Bxe5 {[%clk 0:01:16.9]} 26.
Bxe5 {[%clk 0:00:36.8]} 26... Nxe5 {[%clk 0:01:16.9]} 27. Rb1 {[%clk 0:00:34.9]}
27... Qc5 {[%clk 0:01:14.6]} 28. Red1 {[%clk 0:00:28.7]} 28... Ra3 {[%clk
0:01:08.7]} 29. Rb3 {[%clk 0:00:28.4]} 29... Rxb3 {[%clk 0:01:08.6]} 30. Qxb3
{[%clk 0:00:28.2]} 30... Be6 {[%clk 0:01:09.2]} 31. Qb2 {[%clk 0:00:23.9]} 31...
Rd8 {[%clk 0:01:08.7]} 32. Na4 {[%clk 0:00:22.4]} 32... Qa5 {[%clk 0:01:06.9]}
33. Qb6 {[%clk 0:00:20.9]} 33... Qa8 {[%clk 0:00:53.6]} 34. Nc5 {[%clk 0:00:14]}
34... Bc4 {[%clk 0:00:41.8]} 35. Bxc4 {[%clk 0:00:12.7]} 35... Nxc4 {[%clk
0:00:41.4]} 36. Qb7 {[%clk 0:00:12.1]} 36... Qxb7 {[%clk 0:00:27.4]} 37. Nxb7
{[%clk 0:00:11.4]} 37... Rd7 {[%clk 0:00:27.6]} 38. e5 {[%clk 0:00:09.7]} 38...
Nxe5 {[%clk 0:00:24.7]} 39. Nc5 {[%clk 0:00:09.9]} 39... Rd8 {[%clk 0:00:19.1]}
40. d7 {[%clk 0:00:10]} 40... g5 {[%clk 0:00:18.6]} 41. g3 {[%clk 0:00:09.5]}
41... Kf8 {[%clk 0:00:16.4]} 42. f4 {[%clk 0:00:09.8]} 42... gxf4 {[%clk
0:00:16.3]} 43. gxf4 {[%clk 0:00:09.8]} 43... Ng6 {[%clk 0:00:16.8]} 44. Nb7
{[%clk 0:00:08.3]} 44... Ke7 {[%clk 0:00:17.1]} 45. Nxd8 {[%clk 0:00:07.6]}
45... Kxd8 {[%clk 0:00:18]} 46. Rd6 {[%clk 0:00:07.7]} 46... c5 {[%clk
0:00:17.4]} 47. Rf6 {[%clk 0:00:07.6]} 47... Kxd7 {[%clk 0:00:15.5]} 48. Rxf7+
{[%clk 0:00:07.9]} 48... Kd6 {[%clk 0:00:15.4]} 49. f5 {[%clk 0:00:07.6]} 49...
Ne5 {[%clk 0:00:14.9]} 50. Rxh7 {[%clk 0:00:07.8]} 50... c4 {[%clk 0:00:15.6]}
51. Kf2 {[%clk 0:00:07.7]} 51... c3 {[%clk 0:00:15.7]} 52. Ke3 {[%clk 0:00:08]}
52... Nc4+ {[%clk 0:00:14]} 53. Kd3 {[%clk 0:00:07.7]} 53... Ke5 {[%clk
0:00:13.6]} 54. Kxc3 {[%clk 0:00:07.8]} 54... Ne3 {[%clk 0:00:12.9]} 55. Rf7
{[%clk 0:00:06.7]} 55... Nxf5 {[%clk 0:00:11.8]} 56. Rh7 {[%clk 0:00:06.2]}
56... Kf4 {[%clk 0:00:11.8]} 57. h4 {[%clk 0:00:06.4]} 57... Kg4 {[%clk
0:00:11.4]} 58. Kd3 {[%clk 0:00:06.7]} 58... Nxh4 {[%clk 0:00:11.3]} 59. Ke4
{[%clk 0:00:07.1]} 59... Nf3 {[%clk 0:00:10.1]} 60. Rg7+ {[%clk 0:00:06.9]}
60... Ng5+ {[%clk 0:00:10.3]} 61. Ke5 {[%clk 0:00:07.2]} 61... Kh4 {[%clk
0:00:07.4]} 62. Kf5 {[%clk 0:00:07.1]} 62... Nh3 {[%clk 0:00:06.8]} 63. Rh7+
{[%clk 0:00:05.5]} 63... Kg3 {[%clk 0:00:06.6]} 64. Rg7+ {[%clk 0:00:05.3]}
64... Kf3 {[%clk 0:00:06.8]} 65. Rh7 {[%clk 0:00:05.1]} 65... Nf2 {[%clk
0:00:06.9]} 66. Rh2 {[%clk 0:00:04.3]} 66... Ke3 {[%clk 0:00:07.3]} 67. Rxf2
{[%clk 0:00:03.9]} 67... Kxf2 {[%clk 0:00:07.1]} 1/2-1/2